[Event "WSTCC-50 2024"]
[Site "Krakow"]
[Date "2024.07.04"]
[Round "3.10"]
[White "Wolf, Sylvia"]
[Black "Grawe, Christian"]
[Result "0-1"]
[ECO "B12"]
[WhiteElo "1992"]
[BlackElo "2232"]
[Annotator "RC"]
[PlyCount "94"]
[EventDate "2024.07.01"]
[EventType "team-tourn"]
[EventCountry "POL"]
[SourceTitle "playchess.com"]
[Source "ChessBase"]
[SourceQuality "1"]
[TimeControl "40/5400+30:1800+30"]

1. e4 {[%emt 0:00:03]} c6 {[%emt 0:00:30]} 2. d4 {[%emt 0:00:07]} d5 {[%emt 0:00:09]} 3. e5 {[%emt 0:00:10]} Bf5 {[%emt 0:00:38]} 4. Nc3 {[%emt 0:00:06]} e6 {[%emt 0:00:48]} 5. g4 {[%emt 0:00:34]} Bg6 {[%emt 0:00:15]} 6. Nge2 {[%emt 0:00:03]} c5 {[%emt 0:00:53]} 7. Nf4 {[%emt 0:02:47]} Nc6 {[%emt 0:05:19]} 8. Bb5 {[%emt 0:05:22]} cxd4 {[%emt 0:01:49]} 9. Nxg6 {[%emt 0:05:39]} hxg6 {[%emt 0:01:29]} 10. Qxd4 {[%emt 0:00:14]} Nge7 {[%emt 0:01:12]} 11. Bf4 {[%emt 0:07:13]} a6 {[%emt 0:00:44]} 12. Bxc6+ {[%emt 0:00:03]} Nxc6 {[%emt 0:00:13]} 13. Qd2 {[%emt 0:02:28]} d4 {[%emt 0:14:20]} 14. Ne2 {[%emt 0:09:59]} Qd5 {[%emt 0:01:14]} 15. O-O {[%emt 0:08:26]} Nxe5 {[%emt 0:02:09]} 16. Bxe5 {[%emt 0:00:34]} Qxe5 {[%emt 0:00:05]} 17. f4 {[%emt 0:02:22]} Qd5 {[%emt 0:05:07]} 18. Qd3 {[%emt 0:04:45]} Bc5 {[%emt 0:02:17]} 19. Rf3 {[%emt 0:08:59]} O-O-O {[%emt 0:05:32]} 20. Kg2 {[%emt 0:02:01]} Rh4 {[%emt 0:07:00]} 21. h3 {[%emt 0:00:15]} Rdh8 {[%emt 0:01:46]} 22. Ng1 {[%emt 0:04:41]} f5 {[%emt 0:07:54]} 23. c4 {[%emt 0:03:55]} Qd6 {[%emt 0:06:28]} 24. gxf5 {[%emt 0:04:20]} gxf5 {[%emt 0:01:14]} 25. Ne2 {[%emt 0:03:45]} g5 {[%emt 0:07:02]} 26. a3 {[%emt 0:02:48]} g4 {[%emt 0:03:52]} 27. Rg3 {[%emt 0:03:12]} Rxh3 {[%emt 0:00:49]} 28. b4 {[%emt 0:02:19]} Qc6+ {[%emt 0:04:29]} 29. Kf2 {[%emt 0:07:42]} Rh2+ {[%emt 0:03:07]} 30. Ke1 {[%emt 0:03:54]} Rh1+ {[%emt 0:00:56]} 31. Ng1 {[%emt 0:02:19]} Be7 {[%emt 0:01:55]} 32. Qxd4 {[%emt 0:00:57]} R8h6 {[%emt 0:04:39]} 33. Rd1 {[%emt 0:01:02]} Bf6 {[%emt 0:01:59]} 34. Qd3 {[%emt 0:00:09]} Bh4 {[%emt 0:01:59]} 35. Kf1 {[%emt 0:00:18]} Qc7 {[%emt 0:00:30]} 36. Rg2 {[%emt 0:00:53]} Qxf4+ {[%emt 0:00:34]} 37. Ke2 {[%emt 0:00:02]} Qe5+ {[%emt 0:01:02]} 38. Kf1 {[%emt 0:01:02]} Qc7 {[%emt 0:02:58]} 39. c5 {[%emt 0:00:42]} Qc6 {[%emt 0:01:25]} 40. Rf2 {[%emt 0:02:32]} Bg5 {[%emt 0:02:04]} 41. Ke2 {[%emt 0:11:16]} Rh8 {[%emt 0:08:43]} 42. Qc4 {[%emt 0:09:03]} g3 {[%emt 0:05:02]} 43. Rd6 {[%emt 0:02:28]} Qb5 {[%emt 0:01:35]} 44. Qxb5 {[%emt 0:00:10]} axb5 {[%emt 0:00:02]} 45. Rg2 {[%emt 0:00:37]} R8h2 {[%emt 0:02:41]} 46. Kf3 {[%emt 0:00:45]} Bf4 {[%emt 0:04:34]} 47. Rxe6 {[%emt 0:00:23]} Rxg1 {[%emt 0:00:15]} 0-1

[Event "WSTCC-50 2024"]
[Site "Krakow"]
[Date "2024.07.04"]
[Round "3.11"]
[White "Petursson, Margeir"]
[Black "Fleish, Felix"]
[Result "1-0"]
[ECO "E90"]
[WhiteElo "2397"]
[BlackElo "2161"]
[Annotator "TA"]
[PlyCount "111"]
[EventDate "2024.07.01"]
[EventType "team-tourn"]
[EventCountry "POL"]
[SourceTitle "playchess.com"]
[Source "ChessBase"]
[SourceQuality "1"]
[TimeControl "40/5400+30:1800+30"]

{[%evp 22,111,107,24,56,9,66,68,70,78,55,58,66,40,78,52,52,46,46,58,54,0,0,0,0,-11,-1,-3,0,-59,0,0,0,-154,0,-52,37,77,97,102,91,90,91,13,13,31,477,81,376,377,377,378,382,262,262,262,260,260,260,260,262,260,285,278,513,513,491,478,656,648,767,760,668,793,1690,1693,1670,1580,1564,667,5948,6091,10811,9696,7070,6481,4133,2116,29986,29987,29987,29988]} 1. d4 {[%emt 0:00:06]} Nf6 {[%emt 0:00:02]} 2. c4 {[%emt 0:00:08]} g6 {[%emt 0:00:25]} 3. Nc3 {[%emt 0:00:06]} Bg7 {[%emt 0:00:09]} 4. e4 {[%emt 0:00:07]} d6 {[%emt 0:00:04]} 5. Nf3 {[%emt 0:00:13]} O-O {[%emt 0:00:16]} 6. h3 {[%emt 0:00:07]} c5 {[%emt 0:03:11]} 7. d5 {[%emt 0:00:19]} e6 {[%emt 0:00:38]} 8. Bd3 {[%emt 0:00:28]} exd5 {[%emt 0:03:35]} 9. cxd5 {[%emt 0:02:05]} Re8 {[%emt 0:01:23]} 10. O-O {[%emt 0:00:47]} c4 {[%emt 0:01:31]} 11. Bc2 {[%emt 0:00:52]} b5 {[%emt 0:00:57]} 12. a3 {[%emt 0:01:23]} ({White should try} 12. Nxb5 $16 {And now Re1 would win.} Na6 (12... Nxe4 13. Bxe4 Rxe4 14. Bg5 $16) 13. Bf4 Nxe4 14. Bxe4 Rxe4 15. Bg3 (15. Nxd6 $2 Rxf4 16. Nxc8 Rxc8 $19) (15. Bxd6 Bd7 $16)) 12... Na6 {[%emt 0:08:55]} 13. Re1 {[%emt 0:19:54]} (13. Be3 $14 {is more appropriate.}) 13... b4 {[%emt 0:04:35]} (13... Nc5 $11) 14. axb4 $14 {[%emt 0:05:37]} Nxb4 {[%emt 0:00:05] White is slightly better.} 15. Be3 {[%emt 0:06:50]} a5 {[%emt 0:07:36]} 16. Nd4 {[%emt 0:02:20]} Bd7 {[%emt 0:08:42] Repels Nc6} 17. Qd2 {[%emt 0:09:31]} Rb8 {[%emt 0:02:33]} 18. Bb1 {[%emt 0:01:56]} Qc7 {[%emt 0:02:56]} 19. Rc1 {[%emt 0:06:23]} Na6 $1 {[%emt 0:06:14]} 20. f3 {[%emt 0:02:16]} Nc5 {[%emt 0:10:21]} 21. Nce2 {[%emt 0:00:59]} (21. Ra3 $14) 21... Rb4 $11 {[%emt 0:01:36]} 22. Ba2 {[%emt 0:03:47]} Reb8 {[%emt 0:06:05]} 23. Rc2 {[%emt 0:06:19]} Ba4 {[%emt 0:08:33]} 24. Rxc4 {[%emt 0:02:57]} Rxb2 {[%emt 0:00:17]} 25. Qe1 {[%emt 0:02:30]} ({Better is} 25. Qc1 $11 Qb7 26. Nc3) 25... Bb5 {[%emt 0:08:16]} (25... Nfd7 $15 26. Qc1 R2b4) 26. Nxb5 {[%emt 0:03:55]} R8xb5 {[%emt 0:00:04]} 27. Bd4 $2 {[%emt 0:01:24] [#]} (27. Nd4 $11 Rb7 28. Nc6) 27... R2b4 $2 {[%emt 0:00:53]} (27... Nh5 $1 $17 {...Bxd4+ is the strong threat.} 28. Bxg7 (28. Bxb2 $2 Rxb2 29. Kh2 Rxe2 $19) 28... Kxg7 29. Qc3+ Kg8) 28. Bc3 {[%emt 0:04:38]} (28. Rc2 $11) 28... Ra4 {[%emt 0:06:48]} (28... Nfd7 $15 29. Bxb4 Bxa1 30. Bxc5 Rxc5 31. Qxa1 Rxc4 32. Bxc4 Qxc4) 29. Nd4 $36 {[%emt 0:03:36][%mdl 2048] Black is under strong pressure.} Rb7 {[%emt 0:00:54] Threatens to win with ...Rxc4.} 30. Nc6 {[%emt 0:04:50]} Rxc4 {[%emt 0:01:00]} 31. Bxc4 {[%emt 0:00:04]} a4 {[%emt 0:00:11]} 32. e5 {[%emt 0:01:52] White is much more active.} ({White should play} 32. Ba5 $16 Qd7 33. Bb4 Nfxe4 34. fxe4 Rxb4 35. Nxb4 Bd4+ 36. Kh1 Bxa1 37. Qxa1) 32... dxe5 $11 {[%emt 0:05:27]} 33. Bxe5 {[%emt 0:00:09][%cal Bc3e5,Be5g7,Bg7d4][%mdl 32] A strong pair of Bishops.} Qd7 {[%emt 0:00:14][%mdl 8192] White leaves nothing to chance now.} (33... Qb6 $14 34. Bd4 Nfd7 35. Qe8+ Nf8 36. Bxg7 Kxg7 37. Qe5+ f6) 34. Qc3 $2 {[%emt 0:01:46]} (34. Qa5 $18 {and White stays clearly on top.}) 34... Nxd5 $2 {[%emt 0:00:55][%mdl 8192]} (34... Ne8 $16 {keeps fighting.}) 35. Bxd5 $18 {[%emt 0:03:17]} Qxd5 {[%emt 0:00:02]} 36. Bxg7 {[%emt 0:00:11][%cal Og7f8] [#] Hoping for Bf8!} Qxc6 {[%emt 0:00:13]} 37. Bd4 {[%emt 0:00:12]} Rc7 {[%emt 0:00:44]} 38. Rc1 {[%emt 0:00:30]} Nb3 {[%emt 0:00:59][%cal Ob3d4] White must now prevent ...Nxd4!} 39. Qxc6 {[%emt 0:00:11]} Rxc6 {[%emt 0:00:05]} 40. Rxc6 {[%emt 0:00:06][%cal Rc6c8]} Nxd4 {[%emt 0:00:09][%mdl 4096] Endgame. KR-KN} 41. Ra6 {[%emt 0:32:14]} Ne6 {[%emt 0:32:54]} 42. Kf2 {[%emt 0:02:40]} h5 $2 {[%emt 0:00:10]} (42... g5 {was necessary.} 43. g3 (43. Rxa4 Nf8 $18) 43... h6 44. Rxa4 Kg7) 43. Rxa4 {[%emt 0:01:20]} Kg7 {[%emt 0:00:16]} 44. Ke3 {[%emt 0:00:00]} Kf6 {[%emt 0:00:00]} 45. g3 {[%emt 0:00:00]} Ke7 {[%emt 0:00:00]} 46. Ra5 {[%emt 0:00:00]} Kf6 {[%emt 0:00:00]} 47. f4 {[%emt 0:00:00] Ke4 would now be deadly.} Nd8 {[%emt 0:00:00]} 48. Ke4 {[%emt 0:00:00]} Ne6 {[%emt 0:00:00]} 49. Rb5 {[%emt 0:00:00]} Ng7 {[%emt 0:00:00]} 50. Rb6+ {[%emt 0:00:00]} Ne6 {[%emt 0:00:00]} 51. Rc6 {[%emt 0:00:00]} Kg7 {[%emt 0:00:00]} 52. Ke5 {[%emt 0:00:00] Rxe6 would kill now.} Nf8 {[%emt 0:00:00]} 53. Rd6 {[%emt 0:00:00]} Nh7 {[%emt 0:00:00]} 54. f5 {[%emt 0:00:00][%cal Bf4f5,Bf5f6][%mdl 32]} g5 {[%emt 0:00:00]} 55. f6+ {[%emt 0:00:00]} Kg6 {[%emt 0:00:00]} 56. Rd8 {[%emt 0:00:00] Weighted Error Value: White=0.43/Black=0.80.  Loses game:     	---       	Black=2      Missed win:     	White=1     	---        Mistake:       	White=6     	Black=5      Inaccurate:     	White=3     	Black=2      OK:         	White=8     	Black=10     Best:        	White=5     	Black=3      Strong:       	---       	Black=1} 1-0

[Event "WSTCC-50 2024"]
[Site "Krakow"]
[Date "2024.07.04"]
[Round "3.11"]
[White "Kempter, Ronald"]
[Black "Mai, Iris"]
[Result "1/2-1/2"]
[ECO "A05"]
[WhiteElo "2204"]
[BlackElo "1972"]
[Annotator "RC"]
[PlyCount "102"]
[EventDate "2024.07.01"]
[EventType "team-tourn"]
[EventCountry "POL"]
[SourceTitle "playchess.com"]
[Source "ChessBase"]
[SourceQuality "1"]
[TimeControl "40/5400+30:1800+30"]

1. Nf3 {[%emt 0:00:04]} Nf6 {[%emt 0:00:07]} 2. g3 {[%emt 0:00:11]} b6 {[%emt 0:00:17]} 3. Bg2 {[%emt 0:00:09]} Bb7 {[%emt 0:00:13]} 4. O-O {[%emt 0:00:22]} e6 {[%emt 0:00:43]} 5. d4 {[%emt 0:01:13]} Be7 {[%emt 0:02:39]} 6. c4 {[%emt 0:00:54]} d6 {[%emt 0:06:13]} 7. Nc3 {[%emt 0:04:12]} Nbd7 {[%emt 0:01:51]} 8. Qc2 {[%emt 0:04:55]} O-O {[%emt 0:02:57]} 9. e4 {[%emt 0:03:59]} e5 {[%emt 0:11:28]} 10. d5 {[%emt 0:07:42]} a5 {[%emt 0:13:13]} 11. b3 {[%emt 0:07:27]} Nc5 {[%emt 0:18:11]} 12. Bb2 {[%emt 0:04:33]} Nh5 {[%emt 0:01:27]} 13. Nd2 {[%emt 0:08:08]} Bg5 {[%emt 0:05:52]} 14. Ne2 {[%emt 0:04:28]} Bh6 {[%emt 0:03:49]} 15. Bc3 {[%emt 0:09:40]} Bc8 {[%emt 0:00:50]} 16. a3 {[%emt 0:09:11]} Bg4 {[%emt 0:00:40]} 17. f3 {[%emt 0:02:11]} Bd7 {[%emt 0:00:38]} 18. Nb1 {[%emt 0:05:34]} Be3+ {[%emt 0:07:57]} 19. Kh1 {[%emt 0:00:12]} f5 {[%emt 0:00:22]} 20. Bd2 {[%emt 0:07:05]} Bxd2 {[%emt 0:00:33]} 21. Nxd2 {[%emt 0:00:39]} f4 {[%emt 0:00:52]} 22. g4 {[%emt 0:02:42]} Nf6 {[%emt 0:00:26]} 23. b4 {[%emt 0:03:37]} Nb7 {[%emt 0:03:46]} 24. Kg1 {[%emt 0:01:25]} Qe7 {[%emt 0:01:22]} 25. Nc3 {[%emt 0:01:44]} h5 {[%emt 0:00:34]} 26. h3 {[%emt 0:00:29]} hxg4 {[%emt 0:07:40]} 27. hxg4 {[%emt 0:00:05]} Nh7 {[%emt 0:00:06]} 28. Nb3 {[%emt 0:02:09]} a4 {[%emt 0:00:54]} 29. Nc1 {[%emt 0:01:01]} Rf6 {[%emt 0:02:58]} 30. Qf2 {[%emt 0:04:03]} Rh6 {[%emt 0:00:12]} 31. Rd1 {[%emt 0:00:44]} Ng5 {[%emt 0:01:40]} 32. Nd3 {[%emt 0:01:36]} Kf7 {[%emt 0:02:18]} 33. Kf1 {[%emt 0:01:30]} Rah8 {[%emt 0:00:53]} 34. Ke2 {[%emt 0:00:11]} Rh2 {[%emt 0:01:05]} 35. Rh1 {[%emt 0:00:16]} Nh3 {[%emt 0:01:23]} 36. Qf1 {[%emt 0:02:05]} Ng5 {[%emt 0:00:15]} 37. Qf2 {[%emt 0:00:27]} Nh3 {[%emt 0:00:08]} 38. Rxh2 {[%emt 0:00:44]} Nxf2 {[%emt 0:00:07]} 39. Rxh8 {[%emt 0:00:03]} Nxd3 {[%emt 0:00:09]} 40. Kxd3 {[%emt 0:00:04]} Be8 {[%emt 0:02:02]} 41. Rah1 {[%emt 0:03:50]} Nd8 {[%emt 0:07:10]} 42. Bf1 {[%emt 0:08:04]} Kg6 {[%emt 0:01:34]} 43. Be2 {[%emt 0:00:05]} Nf7 {[%emt 0:00:13]} 44. R8h2 {[%emt 0:02:21]} b5 {[%emt 0:06:45]} 45. cxb5 {[%emt 0:03:29]} Qd8 {[%emt 0:00:19]} 46. Kc2 {[%emt 0:06:59]} Qa8 {[%emt 0:01:48]} 47. Bd3 {[%emt 0:01:35]} Qa7 {[%emt 0:00:15]} 48. Re2 {[%emt 0:00:26]} Ng5 {[%emt 0:02:31]} 49. Rf1 {[%emt 0:00:21]} Bd7 {[%emt 0:00:09]} 50. Kb2 {[%emt 0:01:34]} Qd4 {[%emt 0:00:14]} 51. Kc2 {[%emt 0:00:09]} Qa7 1/2-1/2

[Event "WSTCC-50 2024"]
[Site "Krakow"]
[Date "2024.07.04"]
[Round "3.11"]
[White "Sagalchik, Olga"]
[Black "Forgo, Eva"]
[Result "1/2-1/2"]
[ECO "D11"]
[WhiteElo "2128"]
[BlackElo "2060"]
[Annotator "NA RC"]
[PlyCount "81"]
[EventDate "2024.07.01"]
[EventType "team-tourn"]
[EventCountry "POL"]
[SourceTitle "playchess.com"]
[Source "ChessBase"]
[SourceQuality "1"]
[TimeControl "40/5400+30:1800+30"]

1. d4 {[%emt 0:00:12]} d5 {[%emt 0:00:08]} 2. c4 {[%emt 0:00:48]} c6 {[%emt 0:00:11]} 3. Nf3 {[%emt 0:01:45]} Nf6 {[%emt 0:00:11]} 4. e3 {[%emt 0:00:53]} e6 {[%emt 0:02:10]} 5. Qc2 {[%emt 0:02:47]} Nbd7 {[%emt 0:00:50]} 6. cxd5 {[%emt 0:00:48]} exd5 {[%emt 0:00:46]} 7. Be2 {[%emt 0:01:20]} Bd6 {[%emt 0:02:11]} 8. Nc3 {[%emt 0:04:08]} O-O {[%emt 0:00:30]} 9. Bd2 {[%emt 0:02:58]} Re8 {[%emt 0:00:53]} 10. h4 {[%emt 0:03:17]} Nf8 {[%emt 0:10:46]} 11. O-O-O {[%emt 0:07:50]} Bg4 {[%emt 0:07:14]} 12. Ng5 {[%emt 0:10:10]} Bxe2 {[%emt 0:06:30]} 13. Nxe2 {[%emt 0:00:13]} h6 {[%emt 0:10:11]} 14. Nh3 {[%emt 0:02:35]} Ne4 {[%emt 0:03:54]} 15. g3 {[%emt 0:11:13]} Qe7 {[%emt 0:04:04]} 16. Nc3 {[%emt 0:07:22]} Nd7 {[%emt 0:02:47]} 17. Nxe4 {[%emt 0:04:18]} Qxe4 {[%emt 0:05:03]} 18. Qxe4 {[%emt 0:00:19]} dxe4 {[%emt 0:00:11]} 19. g4 {[%emt 0:05:11]} Nb6 {[%emt 0:01:31]} 20. g5 {[%emt 0:01:32]} h5 {[%emt 0:09:05]} 21. g6 {[%emt 0:03:24]} f6 {[%emt 0:01:46]} 22. Rdf1 {[%emt 0:07:41]} Nd5 {[%emt 0:07:51]} 23. f4 {[%emt 0:01:22]} c5 {[%emt 0:07:54]} 24. dxc5 {[%emt 0:02:29]} Bxc5 {[%emt 0:00:03]} 25. Re1 {[%emt 0:00:07]} Ne7 {[%emt 0:02:08]} 26. f5 {[%emt 0:01:52]} Nxf5 {[%emt 0:00:43]} 27. Nf4 {[%emt 0:00:06]} Rad8 {[%emt 0:01:56]} 28. a3 {[%emt 0:02:13]} Bd6 {[%emt 0:04:29]} 29. Nxh5 {[%emt 0:00:40]} Rc8+ {[%emt 0:01:12]} 30. Kb1 {[%emt 0:01:52]} Ng3 {[%emt 0:00:28]} 31. Nxg3 {[%emt 0:01:51]} Bxg3 {[%emt 0:00:02]} 32. Ref1 {[%emt 0:01:15]} Be5 {[%emt 0:03:34]} 33. h5 {[%emt 0:00:13]} Red8 {[%emt 0:01:17]} 34. Bc1 {[%emt 0:00:20]} b5 {[%emt 0:01:24]} 35. Rd1 {[%emt 0:05:00]} Kf8 {[%emt 0:01:04]} 36. Rxd8+ {[%emt 0:01:12]} Rxd8 {[%emt 0:00:01]} 37. Rf1 {[%emt 0:03:19]} Ke7 {[%emt 0:00:56]} 38. Kc2 {[%emt 0:01:19]} Rh8 {[%emt 0:00:26]} 39. Rh1 {[%emt 0:00:18]} f5 {[%emt 0:00:13]} 40. Bd2 {[%emt 0:00:14]} Kf6 {[%emt 0:00:51]} 41. Bc3 {[%emt 0:06:18]} 1/2-1/2

[Event "WSTCC-50 2024"]
[Site "Krakow"]
[Date "2024.07.04"]
[Round "3.12"]
[White "Jahn, Constanze"]
[Black "Pieper, Thomas"]
[Result "1/2-1/2"]
[ECO "C24"]
[WhiteElo "2051"]
[BlackElo "2170"]
[Annotator "RC"]
[PlyCount "97"]
[EventDate "2024.07.01"]
[EventType "team-tourn"]
[EventCountry "POL"]
[SourceTitle "playchess.com"]
[Source "ChessBase"]
[SourceQuality "1"]
[TimeControl "40/5400+30:1800+30"]

1. e4 {[%emt 0:00:03]} e5 {[%emt 0:00:22]} 2. Bc4 {[%emt 0:00:12]} Nf6 {[%emt 0:00:16]} 3. d3 {[%emt 0:00:08]} Nc6 {[%emt 0:00:28]} 4. c3 {[%emt 0:01:05]} Bc5 {[%emt 0:01:18]} 5. Nf3 {[%emt 0:00:39]} h6 {[%emt 0:01:19]} 6. b4 {[%emt 0:12:46]} Bb6 {[%emt 0:10:09]} 7. a4 {[%emt 0:11:31]} a6 {[%emt 0:01:01]} 8. O-O {[%emt 0:02:07]} d6 {[%emt 0:01:58]} 9. Be3 {[%emt 0:00:49]} Bxe3 {[%emt 0:03:14]} 10. fxe3 {[%emt 0:00:05]} Be6 {[%emt 0:00:50]} 11. Nbd2 {[%emt 0:10:32]} O-O {[%emt 0:10:52]} 12. Bxe6 {[%emt 0:07:48]} fxe6 {[%emt 0:03:16]} 13. Nc4 {[%emt 0:00:45]} b5 {[%emt 0:16:04]} 14. axb5 {[%emt 0:00:23]} axb5 {[%emt 0:00:02]} 15. Na3 {[%emt 0:00:19]} Qb8 {[%emt 0:01:31]} 16. Qb3 {[%emt 0:08:28]} Re8 {[%emt 0:04:05]} 17. Nc2 {[%emt 0:01:08]} Kh8 {[%emt 0:11:18]} 18. Rxa8 {[%emt 0:04:16]} Qxa8 {[%emt 0:00:01]} 19. Ra1 {[%emt 0:00:06]} Qb7 {[%emt 0:00:20]} 20. Qa2 {[%emt 0:03:32]} d5 {[%emt 0:02:40]} 21. Qa6 {[%emt 0:09:14]} Rb8 {[%emt 0:10:24]} 22. Qxb7 {[%emt 0:05:28]} Rxb7 {[%emt 0:00:02]} 23. exd5 {[%emt 0:04:12]} Nxd5 {[%emt 0:01:41]} 24. Ra6 {[%emt 0:00:42]} Rb6 {[%emt 0:02:25]} 25. Ra3 {[%emt 0:01:26]} e4 {[%emt 0:03:44]} 26. dxe4 {[%emt 0:00:31]} Nf6 {[%emt 0:00:08]} 27. Nd2 {[%emt 0:02:19]} e5 {[%emt 0:02:07]} 28. Kf1 {[%emt 0:03:26]} Ne7 {[%emt 0:01:58]} 29. Ke2 {[%emt 0:00:31]} Rc6 {[%emt 0:00:22]} 30. Ne1 {[%emt 0:00:37]} Kh7 {[%emt 0:01:20]} 31. Nd3 Nd7 {[%emt 0:02:51]} 32. Nf3 {[%emt 0:03:38]} Nc8 {[%emt 0:02:13]} 33. Ndxe5 {[%emt 0:01:29]} Nxe5 {[%emt 0:00:09]} 34. Nxe5 {[%emt 0:00:03]} Re6 {[%emt 0:00:11]} 35. Nd3 {[%emt 0:02:25]} Rxe4 {[%emt 0:00:08]} 36. Nc5 {[%emt 0:00:11]} Re7 {[%emt 0:02:42]} 37. Ra8 {[%emt 0:01:52]} Nd6 {[%emt 0:01:39]} 38. Ra7 {[%emt 0:00:35]} h5 {[%emt 0:01:16]} 39. g3 {[%emt 0:01:25]} Kh6 {[%emt 0:01:25]} 40. Ra1 {[%emt 0:01:24]} Nc4 {[%emt 0:01:55]} 41. e4 {[%emt 0:30:19]} Re8 {[%emt 0:04:47]} 42. Ra6+ {[%emt 0:00:00]} g6 {[%emt 0:02:40]} 43. Ne6 {[%emt 0:00:00]} Re7 {[%emt 0:04:54]} 44. Nc5 {[%emt 0:00:00]} Re8 {[%emt 0:00:27]} 45. Ne6 {[%emt 0:00:00]} Re7 {[%emt 0:02:00]} 46. Nc5 {[%emt 0:00:00]} Re8 {[%emt 0:00:10]} 47. Ne6 {[%emt 0:00:00]} Nd6 48. h4 Nxe4 49. Ng5 1/2-1/2

[Event "WSTCC-50 2024"]
[Site "Krakow"]
[Date "2024.07.04"]
[Round "3.12"]
[White "Csom, Etelka"]
[Black "Tsodikova, Natalia"]
[Result "0-1"]
[ECO "C44"]
[WhiteElo "1996"]
[BlackElo "2019"]
[Annotator "NA RC"]
[PlyCount "88"]
[EventDate "2024.07.01"]
[EventType "team-tourn"]
[EventCountry "POL"]
[SourceTitle "playchess.com"]
[Source "ChessBase"]
[SourceQuality "1"]
[TimeControl "40/5400+30:1800+30"]

1. e4 {[%emt 0:00:09]} e5 {[%emt 0:00:06]} 2. Nf3 {[%emt 0:00:29]} Nc6 {[%emt 0:00:11]} 3. d4 {[%emt 0:00:12]} exd4 {[%emt 0:00:15]} 4. Nxd4 {[%emt 0:00:17]} Bb4+ {[%emt 0:00:14]} 5. c3 {[%emt 0:01:06]} Bc5 {[%emt 0:00:10]} 6. Be3 {[%emt 0:00:51]} Bb6 {[%emt 0:00:11]} 7. Nf5 {[%emt 0:01:24]} g6 {[%emt 0:01:21]} 8. Bxb6 {[%emt 0:02:18]} axb6 {[%emt 0:00:29]} 9. Ne3 {[%emt 0:00:13]} Nf6 {[%emt 0:00:32]} 10. f3 {[%emt 0:04:59]} O-O {[%emt 0:00:54]} 11. Be2 {[%emt 0:04:56]} Nh5 {[%emt 0:08:08]} 12. O-O {[%emt 0:04:45]} Nf4 {[%emt 0:07:06]} 13. Nd5 {[%emt 0:05:50]} Nxe2+ {[%emt 0:03:33]} 14. Qxe2 {[%emt 0:00:13]} d6 {[%emt 0:00:14]} 15. Nd2 {[%emt 0:12:21]} Be6 {[%emt 0:02:16]} 16. Nc4 {[%emt 0:09:22]} Bxd5 {[%emt 0:06:43]} 17. exd5 {[%emt 0:00:18]} Re8 {[%emt 0:00:40]} 18. Qd2 {[%emt 0:01:25]} Ne5 {[%emt 0:01:59]} 19. Nxe5 {[%emt 0:01:21]} dxe5 {[%emt 0:00:58]} 20. a3 {[%emt 0:02:29]} Qd6 {[%emt 0:02:27]} 21. Rad1 {[%emt 0:02:34]} Red8 {[%emt 0:07:38]} 22. Qe3 {[%emt 0:02:29]} Ra5 {[%emt 0:07:12]} 23. c4 {[%emt 0:01:14]} Ra4 {[%emt 0:03:20]} 24. Rc1 {[%emt 0:01:15]} Qc5 {[%emt 0:01:06]} 25. Qxc5 {[%emt 0:01:47]} bxc5 {[%emt 0:00:02]} 26. Rfe1 {[%emt 0:01:21]} Re8 {[%emt 0:01:03]} 27. Kf2 {[%emt 0:01:58]} f5 {[%emt 0:04:47]} 28. Rc2 {[%emt 0:07:46]} Kf7 {[%emt 0:00:42]} 29. g3 {[%emt 0:00:56]} Kf6 {[%emt 0:01:06]} 30. f4 {[%emt 0:03:18]} e4 {[%emt 0:00:37]} 31. h4 {[%emt 0:01:06]} h6 {[%emt 0:01:58]} 32. Rh1 {[%emt 0:00:26]} Rg8 {[%emt 0:13:51]} 33. Rc3 {[%emt 0:05:33]} Rd8 {[%emt 0:03:15]} 34. Ra1 {[%emt 0:04:31]} Ra6 {[%emt 0:04:05]} 35. Rc2 {[%emt 0:05:00]} Rb6 {[%emt 0:01:03]} 36. Re1 {[%emt 0:03:00]} g5 {[%emt 0:00:49]} 37. hxg5+ {[%emt 0:01:42]} hxg5 {[%emt 0:00:02]} 38. Rh1 {[%emt 0:01:04]} gxf4 {[%emt 0:05:32]} 39. gxf4 {[%emt 0:01:14]} Rb3 {[%emt 0:01:35]} 40. Rh7 {[%emt 0:04:32]} Rg8 {[%emt 0:01:56]} 41. Ke1 {[%emt 0:32:42]} Rg1+ {[%emt 0:32:04]} 42. Kf2 {[%emt 0:00:21]} Rg4 {[%emt 0:00:50]} 43. Rxc7 {[%emt 0:00:00]} Rf3+ {[%emt 0:00:00]} 44. Ke1 {[%emt 0:00:00]} Rg1+ {[%emt 0:00:00]} 0-1

[Event "WSTCC-50 2024"]
[Site "Krakow"]
[Date "2024.07.04"]
[Round "3.12"]
[White "Linik, Yaron"]
[Black "Thorhallsson, Throstur"]
[Result "1/2-1/2"]
[ECO "B22"]
[WhiteElo "1910"]
[BlackElo "2385"]
[Annotator "TA"]
[PlyCount "39"]
[EventDate "2024.07.01"]
[EventType "team-tourn"]
[EventCountry "POL"]
[SourceTitle "playchess.com"]
[Source "ChessBase"]
[SourceQuality "1"]
[TimeControl "40/5400+30:1800+30"]

{[%evp 20,39,10,16,53,33,35,43,62,44,37,29,59,50,60,62,75,42,46,41,41,0]} 1. e4 {[%emt 0:00:05]} c5 {[%emt 0:00:11]} 2. c3 {[%emt 0:00:18]} d5 {[%emt 0:00:08]} 3. exd5 {[%emt 0:00:28]} Qxd5 {[%emt 0:00:10]} 4. d4 {[%emt 0:00:23]} Nf6 {[%emt 0:00:21]} 5. Nf3 {[%emt 0:00:12]} e6 {[%emt 0:00:28]} 6. Na3 {[%emt 0:00:33]} Nc6 {[%emt 0:01:30]} 7. Be2 {[%emt 0:01:15]} cxd4 {[%emt 0:04:49]} 8. Nb5 {[%emt 0:00:20]} Qd8 {[%emt 0:01:02]} 9. Nbxd4 {[%emt 0:00:59]} Nxd4 {[%emt 0:03:15]} 10. Qxd4 {[%emt 0:00:55]} Qxd4 {[%emt 0:02:45]} 11. Nxd4 {[%emt 0:00:31][%cal Bf3d4,Bd4b3,Bb3a5][%mdl 32]} a6 {[%emt 0:01:19]} 12. O-O {[%emt 0:03:07]} Bd6 {[%emt 0:03:44]} 13. Rd1 {[%emt 0:11:48][%cal Od4e6]} Ke7 {[%emt 0:07:10]} 14. Bf3 {[%emt 0:01:36]} Rd8 {[%emt 0:11:47]} 15. Be3 {[%emt 0:02:21]} Nd7 {[%emt 0:11:18]} 16. Nb3 {[%emt 0:06:01]} Ne5 {[%emt 0:06:10]} 17. Be2 {[%emt 0:02:02]} Bd7 {[%emt 0:05:17]} 18. Na5 {[%emt 0:07:24] White is more active.} Bc6 {[%emt 0:00:47]} 19. Bb6 {[%emt 0:04:38]} Rdc8 {[%emt 0:02:20]} 20. Rd2 {[%emt 0:03:55] Weighted Error Value: White=0.11 (very precise) /Black=0.10 (very precise) .  Inaccurate:     	White=2     	Black=1      OK:         	White=2     	Black=4} 1/2-1/2